[Event "XIII Mediterranean Championship 2023"]
[Site "Castell-Platja d Aro"]
[Date "2023.11.08"]
[Round "6.7"]
[White "Narciso Dublan, Marc"]
[Black "Lazaro Pujol, Abel"]
[Result "1-0"]
[ECO "A13"]
[WhiteElo "2401"]
[BlackElo "2289"]
[Annotator "RC"]
[PlyCount "81"]
[EventDate "2023.10.26"]
[EventType "swiss"]
[EventCountry "ESP"]
[SourceTitle "playchess.com"]
[Source "ChessBase"]
[SourceQuality "1"]
[TimeControl "5400+30"]

1. c4 {[%emt 0:00:05]} e6 {[%emt 0:01:00]} 2. g3 {[%emt 0:00:22]} d5 {[%emt 0:00:30]} 3. Bg2 {[%emt 0:00:15]} Nf6 {[%emt 0:01:07]} 4. Nf3 {[%emt 0:00:10]} d4 {[%emt 0:02:16]} 5. O-O {[%emt 0:00:26]} c5 {[%emt 0:00:24]} 6. e3 {[%emt 0:01:59]} Nc6 {[%emt 0:00:16]} 7. exd4 {[%emt 0:00:08]} cxd4 {[%emt 0:00:22]} 8. d3 {[%emt 0:00:09]} h6 {[%emt 0:00:56]} 9. Bf4 {[%emt 0:04:28]} Nd7 {[%emt 0:00:42]} 10. Na3 {[%emt 0:04:35]} Bc5 {[%emt 0:08:39]} 11. Nc2 {[%emt 0:05:36]} a5 {[%emt 0:04:24]} 12. b3 {[%emt 0:11:30]} O-O {[%emt 0:03:25]} 13. a3 {[%emt 0:00:50]} e5 {[%emt 0:09:28]} 14. Bd2 {[%emt 0:01:00]} Qe7 {[%emt 0:01:35]} 15. Re1 {[%emt 0:04:23]} Ra6 {[%emt 0:09:02]} 16. b4 {[%emt 0:21:16]} axb4 {[%emt 0:09:19]} 17. axb4 {[%emt 0:00:08]} Nxb4 {[%emt 0:02:57]} 18. Nxb4 {[%emt 0:00:18]} Bxb4 {[%emt 0:00:22]} 19. Bxb4 {[%emt 0:00:25]} Qxb4 {[%emt 0:00:08]} 20. Nxe5 {[%emt 0:00:35]} Nxe5 {[%emt 0:14:47]} 21. Rxe5 {[%emt 0:00:31]} Rxa1 {[%emt 0:14:41]} 22. Qxa1 {[%emt 0:00:06]} Bd7 {[%emt 0:00:03]} 23. h4 {[%emt 0:10:35]} Qc3 {[%emt 0:01:17]} 24. Qb1 {[%emt 0:05:13]} Bc6 {[%emt 0:01:34]} 25. Bxc6 {[%emt 0:02:49]} bxc6 {[%emt 0:00:15]} 26. Qd1 {[%emt 0:01:06]} Qa3 {[%emt 0:04:00]} 27. Qe2 {[%emt 0:04:51]} Qd6 {[%emt 0:02:49]} 28. h5 {[%emt 0:01:11]} Qf6 {[%emt 0:01:27]} 29. Qe4 {[%emt 0:01:38]} Rd8 {[%emt 0:01:00]} 30. Kg2 {[%emt 0:01:14]} Kf8 {[%emt 0:02:49]} 31. Rc5 {[%emt 0:03:24]} Rd6 {[%emt 0:03:36]} 32. Qh7 {[%emt 0:01:05]} g5 {[%emt 0:00:13]} 33. hxg6 {[%emt 0:02:24]} Qxg6 {[%emt 0:00:34]} 34. Qh8+ {[%emt 0:00:12]} Qg8 {[%emt 0:00:43]} 35. Qe5 {[%emt 0:00:28]} Qg6 {[%emt 0:00:39]} 36. Ra5 {[%emt 0:00:39]} Rd8 {[%emt 0:00:39]} 37. Qh8+ {[%emt 0:02:37]} Ke7 {[%emt 0:00:02]} 38. Ra7+ {[%emt 0:02:32]} Rd7 {[%emt 0:00:01]} 39. Ra8 {[%emt 0:01:43]} f6 {[%emt 0:01:28]} 40. Qf8+ {[%emt 0:00:39]} Ke6 {[%emt 0:00:07]} 41. Re8+ {[%emt 0:00:08]} 1-0

[Event "XIII Mediterranean Championship 2023"]
[Site "Castell-Platja d Aro"]
[Date "2023.11.08"]
[Round "6.8"]
[White "Hernando Rodrigo, Julio Antonio"]
[Black "Gilevych, Artem"]
[Result "1/2-1/2"]
[ECO "E06"]
[WhiteElo "2202"]
[BlackElo "2416"]
[Annotator "RC"]
[PlyCount "32"]
[EventDate "2023.10.26"]
[EventType "swiss"]
[EventCountry "ESP"]
[SourceTitle "playchess.com"]
[Source "ChessBase"]
[SourceQuality "1"]
[TimeControl "5400+30"]

1. d4 {[%emt 0:00:04]} d5 {[%emt 0:00:05]} 2. c4 {[%emt 0:00:04]} e6 {[%emt 0:00:06]} 3. Nf3 {[%emt 0:00:06]} Nf6 {[%emt 0:00:05]} 4. g3 {[%emt 0:00:15]} Be7 {[%emt 0:00:06]} 5. Bg2 {[%emt 0:00:06]} O-O {[%emt 0:00:05]} 6. O-O {[%emt 0:00:05]} c6 {[%emt 0:00:12]} 7. Nbd2 {[%emt 0:00:22]} b6 {[%emt 0:00:19]} 8. Qc2 {[%emt 0:00:21]} Bb7 {[%emt 0:00:17]} 9. e4 {[%emt 0:00:44]} Na6 {[%emt 0:00:06]} 10. a3 {[%emt 0:00:49]} c5 {[%emt 0:00:35]} 11. exd5 {[%emt 0:00:37]} exd5 {[%emt 0:00:11]} 12. dxc5 {[%emt 0:00:21]} Nxc5 {[%emt 0:00:19]} 13. b4 {[%emt 0:00:33]} Ne6 {[%emt 0:00:15]} 14. Bb2 {[%emt 0:06:30]} Rc8 {[%emt 0:00:08]} 15. Ne5 {[%emt 0:00:27]} Qc7 {[%emt 0:00:20]} 16. Qf5 {[%emt 0:07:23]} dxc4 {[%emt 1:35:21]} 1/2-1/2

[Event "XIII Mediterranean Championship 2023"]
[Site "Castell-Platja d Aro"]
[Date "2023.11.08"]
[Round "6.9"]
[White "Pham Guerrero, Sergi"]
[Black "Lacasa Diaz, Jose Antonio"]
[Result "0-1"]
[ECO "B26"]
[WhiteElo "2072"]
[BlackElo "2353"]
[Annotator "RC"]
[PlyCount "136"]
[EventDate "2023.10.26"]
[EventType "swiss"]
[EventCountry "ESP"]
[SourceTitle "playchess.com"]
[Source "ChessBase"]
[SourceQuality "1"]
[TimeControl "5400+30"]

1. e4 {[%emt 0:00:06]} c5 {[%emt 0:00:14]} 2. Nc3 {[%emt 0:00:13]} g6 {[%emt 0:00:13]} 3. g3 {[%emt 0:03:40]} Bg7 {[%emt 0:00:49]} 4. Bg2 {[%emt 0:00:12]} Nc6 {[%emt 0:00:22]} 5. d3 {[%emt 0:00:30]} e6 {[%emt 0:00:51]} 6. Be3 {[%emt 0:01:28]} d6 {[%emt 0:00:27]} 7. Qd2 {[%emt 0:02:01]} Rb8 {[%emt 0:01:47]} 8. a4 {[%emt 0:03:01]} a6 {[%emt 0:01:26]} 9. Nge2 {[%emt 0:03:29]} Nd4 {[%emt 0:01:15]} 10. O-O {[%emt 0:00:24]} h5 {[%emt 0:03:15]} 11. a5 {[%emt 0:12:22]} Ne7 {[%emt 0:12:52]} 12. f4 {[%emt 0:13:37]} Nec6 {[%emt 0:06:37]} 13. e5 {[%emt 0:01:51]} d5 {[%emt 0:14:29]} 14. Na4 {[%emt 0:10:09]} Bf8 {[%emt 0:02:06]} 15. Nxd4 {[%emt 0:14:16]} cxd4 {[%emt 0:01:11]} 16. Bf2 {[%emt 0:00:14]} Bb4 {[%emt 0:01:17]} 17. c3 {[%emt 0:01:48]} Bxa5 {[%emt 0:01:45]} 18. Qc2 {[%emt 0:04:00]} dxc3 {[%emt 0:03:16]} 19. bxc3 {[%emt 0:02:01]} O-O {[%emt 0:04:00]} 20. g4 {[%emt 0:01:35]} hxg4 {[%emt 0:00:38]} 21. Qe2 {[%emt 0:00:26]} f5 {[%emt 0:12:30]} 22. exf6 {[%emt 0:04:53]} Qxf6 {[%emt 0:05:40]} 23. Bc5 {[%emt 0:01:57]} b5 {[%emt 0:03:37]} 24. Bxf8 {[%emt 0:02:54]} Kxf8 {[%emt 0:00:15]} 25. c4 {[%emt 0:08:15]} bxa4 {[%emt 0:00:36]} 26. cxd5 {[%emt 0:00:32]} Nd4 {[%emt 0:01:29]} 27. Qe5 {[%emt 0:00:35]} Qxe5 {[%emt 0:02:36]} 28. fxe5+ {[%emt 0:00:13]} Nf5 {[%emt 0:00:41]} 29. Rxa4 {[%emt 0:00:58]} Bb6+ {[%emt 0:00:39]} 30. Kh1 {[%emt 0:00:06]} exd5 {[%emt 0:00:08]} 31. Rxg4 {[%emt 0:00:44]} Kg7 {[%emt 0:00:35]} 32. Rb4 {[%emt 0:00:30]} Bc7 {[%emt 0:01:17]} 33. Rxb8 {[%emt 0:00:32]} Bxb8 {[%emt 0:00:03]} 34. Rc1 {[%emt 0:03:14]} Be6 {[%emt 0:02:40]} 35. Rc6 {[%emt 0:01:23]} Kf7 {[%emt 0:00:15]} 36. Rxa6 {[%emt 0:00:18]} Bxe5 {[%emt 0:01:02]} 37. Bh3 {[%emt 0:00:59]} d4 {[%emt 0:01:41]} 38. Ra7+ {[%emt 0:00:51]} Kf6 {[%emt 0:00:11]} 39. Ra6 {[%emt 0:00:16]} Ke7 {[%emt 0:01:14]} 40. Ra7+ {[%emt 0:00:15]} Kf8 {[%emt 0:00:07]} 41. Ra5 {[%emt 0:04:12]} Bf4 {[%emt 0:00:28]} 42. Bg2 {[%emt 0:00:00]} Nd6 {[%emt 0:01:16]} 43. Bf3 {[%emt 0:00:00]} Ke7 {[%emt 0:00:41]} 44. Kg2 {[%emt 0:00:34]} Nf5 {[%emt 0:00:41]} 45. Be4 {[%emt 0:00:42]} Ne3+ {[%emt 0:02:05]} 46. Kg1 {[%emt 0:00:39]} g5 {[%emt 0:00:08]} 47. Ra4 {[%emt 0:00:26]} Ng4 {[%emt 0:00:38]} 48. Kg2 {[%emt 0:01:09]} Be5 {[%emt 0:01:14]} 49. Ra5 {[%emt 0:00:00]} Kf6 {[%emt 0:00:58]} 50. Ra6 {[%emt 0:00:00]} Ne3+ {[%emt 0:01:18]} 51. Kg1 {[%emt 0:00:24]} g4 {[%emt 0:00:25]} 52. Bb7 {[%emt 0:00:47]} Ke7 {[%emt 0:01:23]} 53. Ra5 {[%emt 0:00:28]} Bf4 {[%emt 0:00:30]} 54. Ra4 {[%emt 0:00:14]} Nf5 {[%emt 0:00:26]} 55. Be4 {[%emt 0:00:17]} Nh4 {[%emt 0:00:49]} 56. Kh1 {[%emt 0:00:22]} Be3 {[%emt 0:01:53]} 57. Ra7+ {[%emt 0:00:25]} Kf6 {[%emt 0:00:20]} 58. Ra6 {[%emt 0:00:02]} Ke5 {[%emt 0:00:24]} 59. Ra5+ {[%emt 0:00:45]} Kf4 {[%emt 0:00:07]} 60. Ra6 {[%emt 0:00:08]} Bb3 {[%emt 0:00:47]} 61. Rh6 {[%emt 0:00:50]} Kg5 {[%emt 0:00:37]} 62. Rb6 {[%emt 0:00:25]} Bd1 {[%emt 0:00:24]} 63. Rb5+ {[%emt 0:00:52]} Kf4 {[%emt 0:00:22]} 64. Rh5 {[%emt 0:00:26]} Bf2 {[%emt 0:00:36]} 65. Rh8 {[%emt 0:00:49]} Ke3 {[%emt 0:01:06]} 66. Rf8 {[%emt 0:01:08]} Bf3+ {[%emt 0:00:25]} 67. Bxf3 {[%emt 0:00:04]} gxf3 {[%emt 0:00:07]} 68. h3 {[%emt 0:00:59]} Kxd3 {[%emt 0:00:16]} 0-1

[Event "XIII Mediterranean Championship 2023"]
[Site "Castell-Platja d Aro"]
[Date "2023.11.08"]
[Round "6.10"]
[White "Masague Artero, Guerau"]
[Black "Makka, Evanthia"]
[Result "1-0"]
[ECO "A21"]
[WhiteElo "2305"]
[BlackElo "2004"]
[Annotator "RC"]
[PlyCount "93"]
[EventDate "2023.10.26"]
[EventType "swiss"]
[EventCountry "ESP"]
[SourceTitle "playchess.com"]
[Source "ChessBase"]
[SourceQuality "1"]
[TimeControl "5400+30"]

1. c4 {[%emt 0:00:02]} e5 {[%emt 0:04:14]} 2. Nc3 {[%emt 0:00:16]} d6 {[%emt 0:01:51]} 3. Nf3 {[%emt 0:00:31]} f5 {[%emt 0:02:34]} 4. d4 {[%emt 0:01:05]} e4 {[%emt 0:05:00]} 5. Ng5 {[%emt 0:00:21]} c6 {[%emt 0:16:13]} 6. d5 {[%emt 0:09:56]} Be7 {[%emt 0:02:43]} 7. h4 {[%emt 0:08:04]} Nf6 {[%emt 0:11:43]} 8. e3 {[%emt 0:09:21]} O-O {[%emt 0:12:11]} 9. Be2 {[%emt 0:01:41]} Ne8 {[%emt 0:03:45]} 10. dxc6 {[%emt 0:08:27]} bxc6 {[%emt 0:01:54]} 11. b3 {[%emt 0:00:13]} Bxg5 {[%emt 0:08:38]} 12. hxg5 {[%emt 0:00:07]} Qxg5 {[%emt 0:00:08]} 13. g3 {[%emt 0:01:06]} Be6 {[%emt 0:01:35]} 14. Bb2 {[%emt 0:07:57]} Nd7 {[%emt 0:02:05]} 15. Qc2 {[%emt 0:00:15]} Ne5 {[%emt 0:06:05]} 16. O-O-O {[%emt 0:00:36]} Rf7 {[%emt 0:01:23]} 17. Rh5 {[%emt 0:11:18]} Nd3+ {[%emt 0:04:23]} 18. Qxd3 {[%emt 0:06:32]} Qxh5 {[%emt 0:08:31]} 19. Bxh5 {[%emt 0:00:09]} exd3 {[%emt 0:00:05]} 20. Bxf7+ {[%emt 0:00:09]} Kxf7 {[%emt 0:00:10]} 21. Rxd3 {[%emt 0:00:06]} Ke7 {[%emt 0:00:30]} 22. e4 {[%emt 0:07:11]} Rd8 {[%emt 0:00:53]} 23. Re3 {[%emt 0:00:25]} Kf7 {[%emt 0:00:35]} 24. e5 {[%emt 0:01:23]} dxe5 {[%emt 0:01:08]} 25. Rxe5 {[%emt 0:00:06]} Nf6 {[%emt 0:00:38]} 26. Ra5 {[%emt 0:01:42]} Rd7 {[%emt 0:03:19]} 27. f3 {[%emt 0:00:21]} f4 {[%emt 0:00:32]} 28. gxf4 {[%emt 0:09:07]} g6 {[%emt 0:00:08]} 29. Ne2 {[%emt 0:00:23]} h5 {[%emt 0:01:03]} 30. Bd4 {[%emt 0:06:07]} h4 {[%emt 0:00:38]} 31. Rxa7 {[%emt 0:00:28]} h3 {[%emt 0:00:40]} 32. Rxd7+ {[%emt 0:00:26]} Bxd7 {[%emt 0:00:29]} 33. Bg1 {[%emt 0:00:24]} Ke6 {[%emt 0:00:26]} 34. Kd2 {[%emt 0:00:59]} Nh5 {[%emt 0:00:27]} 35. Ke3 {[%emt 0:00:51]} c5 {[%emt 0:00:21]} 36. Bh2 {[%emt 0:00:34]} Ng7 {[%emt 0:00:36]} 37. Kf2 {[%emt 0:01:18]} Bc8 {[%emt 0:00:43]} 38. Nc3 {[%emt 0:01:08]} Kd7 {[%emt 0:00:35]} 39. Ne4 {[%emt 0:03:53]} Kc6 {[%emt 0:00:07]} 40. Kg3 {[%emt 0:00:01]} Bf5 {[%emt 0:00:34]} 41. Bg1 {[%emt 0:01:20]} Nh5+ {[%emt 0:00:48]} 42. Kh2 {[%emt 0:00:22]} Bxe4 {[%emt 0:00:14]} 43. fxe4 {[%emt 0:00:07]} Nxf4 {[%emt 0:00:18]} 44. Be3 {[%emt 0:00:04]} Ne2 {[%emt 0:01:02]} 45. e5 {[%emt 0:02:44]} Nc3 {[%emt 0:00:18]} 46. a4 {[%emt 0:00:10]} Na2 {[%emt 0:00:40]} 47. Bd2 {[%emt 0:04:14]} 1-0

[Event "XIII Mediterranean Championship 2023"]
[Site "Castell-Platja d Aro"]
[Date "2023.11.08"]
[Round "6.11"]
[White "Domene Mulyukov, Alexander"]
[Black "Ventura Bolet, Alexandre"]
[Result "1-0"]
[ECO "B02"]
[WhiteElo "2198"]
[BlackElo "2238"]
[Annotator "RC"]
[PlyCount "89"]
[EventDate "2023.10.26"]
[EventType "swiss"]
[EventCountry "ESP"]
[SourceTitle "playchess.com"]
[Source "ChessBase"]
[SourceQuality "1"]
[TimeControl "5400+30"]

1. e4 {[%emt 0:05:20]} Nf6 {[%emt 0:00:11]} 2. e5 {[%emt 0:00:08]} Nd5 {[%emt 0:00:04]} 3. c4 {[%emt 0:00:05]} Nb6 {[%emt 0:00:05]} 4. c5 {[%emt 0:00:04]} Nd5 {[%emt 0:00:08]} 5. Nc3 {[%emt 0:00:04]} c6 {[%emt 0:01:16]} 6. Nf3 {[%emt 0:00:21]} d6 {[%emt 0:00:55]} 7. cxd6 {[%emt 0:00:21]} exd6 {[%emt 0:00:22]} 8. Nxd5 {[%emt 0:00:13]} cxd5 {[%emt 0:00:12]} 9. Bb5+ {[%emt 0:00:07]} Nc6 {[%emt 0:01:24]} 10. O-O {[%emt 0:00:19]} Be7 {[%emt 0:10:35]} 11. Nd4 {[%emt 0:00:12]} O-O {[%emt 0:10:12]} 12. Nxc6 {[%emt 0:00:15]} bxc6 {[%emt 0:00:06]} 13. Bxc6 {[%emt 0:00:09]} Rb8 {[%emt 0:00:32]} 14. d4 {[%emt 0:00:13]} Be6 {[%emt 0:05:23]} 15. Ba4 {[%emt 0:03:45]} dxe5 {[%emt 0:11:10]} 16. dxe5 {[%emt 0:00:28]} Bc5 {[%emt 0:00:09]} 17. Bb3 {[%emt 0:17:12]} Qh4 {[%emt 0:09:25]} 18. Qd3 {[%emt 0:07:43]} Rfd8 {[%emt 0:09:23]} 19. Bd2 {[%emt 0:16:35]} Qd4 {[%emt 0:14:32]} 20. Qxd4 {[%emt 0:05:04]} Bxd4 {[%emt 0:00:06]} 21. Bc3 {[%emt 0:00:12]} Bb6 {[%emt 0:01:26]} 22. Rfc1 {[%emt 0:27:31]} d4 {[%emt 0:02:30]} 23. Bb4 {[%emt 0:00:15]} Bxb3 {[%emt 0:00:59]} 24. axb3 {[%emt 0:00:11]} Rd5 {[%emt 0:03:10]} 25. Bd6 {[%emt 0:02:57]} Re8 {[%emt 0:00:40]} 26. Rc4 {[%emt 0:04:24]} f6 {[%emt 0:00:35]} 27. f4 {[%emt 0:00:13]} d3+ {[%emt 0:04:14]} 28. Kf1 {[%emt 0:00:15]} h5 {[%emt 0:01:56]} 29. Rd1 {[%emt 0:02:06]} g5 {[%emt 0:01:40]} 30. g3 {[%emt 0:00:57]} gxf4 {[%emt 0:00:12]} 31. gxf4 {[%emt 0:00:23]} Kf7 {[%emt 0:00:30]} 32. Rc3 {[%emt 0:01:11]} Rg8 {[%emt 0:01:30]} 33. Rdxd3 {[%emt 0:01:36]} Rxd3 {[%emt 0:01:13]} 34. Rxd3 {[%emt 0:00:07]} Rg1+ {[%emt 0:00:04]} 35. Ke2 {[%emt 0:00:06]} Rg2+ {[%emt 0:00:16]} 36. Kf3 {[%emt 0:00:26]} Rxh2 {[%emt 0:00:43]} 37. e6+ {[%emt 0:00:42]} Kg7 {[%emt 0:02:53]} 38. Ke4 {[%emt 0:00:13]} Re2+ {[%emt 0:04:51]} 39. Kf5 {[%emt 0:00:10]} Re3 {[%emt 0:00:27]} 40. Rd2 {[%emt 0:01:16]} h4 {[%emt 0:01:16]} 41. Be7 {[%emt 0:00:23]} h3 {[%emt 0:00:59]} 42. Bxf6+ {[%emt 0:00:06]} Kh6 {[%emt 0:01:02]} 43. Rd7 {[%emt 0:01:13]} h2 {[%emt 0:00:41]} 44. Bg5+ {[%emt 0:00:08]} Kh5 {[%emt 0:00:06]} 45. Rh7# {[%emt 0:00:08]} 1-0

[Event "XIII Mediterranean Championship 2023"]
[Site "Castell-Platja d Aro"]
[Date "2023.11.08"]
[Round "6.12"]
[White "Rodriguez Redondo, Adhara"]
[Black "Martin Barcelo, Carles"]
[Result "1/2-1/2"]
[ECO "B13"]
[WhiteElo "2117"]
[BlackElo "2242"]
[Annotator "RC"]
[PlyCount "99"]
[EventDate "2023.10.26"]
[EventType "swiss"]
[EventCountry "ESP"]
[SourceTitle "playchess.com"]
[Source "ChessBase"]
[SourceQuality "1"]
[TimeControl "5400+30"]

1. e4 {[%emt 0:00:11]} c6 {[%emt 0:00:15]} 2. d4 {[%emt 0:00:05]} d5 {[%emt 0:00:03]} 3. exd5 {[%emt 0:00:06]} cxd5 {[%emt 0:00:06]} 4. Bd3 {[%emt 0:00:05]} Nf6 {[%emt 0:00:15]} 5. c3 {[%emt 0:00:25]} Bg4 {[%emt 0:00:45]} 6. Qb3 {[%emt 0:00:57]} Qc7 {[%emt 0:00:39]} 7. h3 {[%emt 0:02:01]} Bh5 {[%emt 0:00:48]} 8. Ne2 {[%emt 0:10:49]} Nc6 {[%emt 0:02:50]} 9. Bf4 {[%emt 0:06:38]} Qd7 {[%emt 0:00:19]} 10. O-O {[%emt 0:04:08]} e6 {[%emt 0:00:10]} 11. Nd2 {[%emt 0:08:56]} Bd6 {[%emt 0:01:46]} 12. Bg5 {[%emt 0:11:40]} O-O {[%emt 0:02:00]} 13. Nf4 {[%emt 0:05:26]} Bg6 {[%emt 0:03:18]} 14. Nxg6 {[%emt 0:00:37]} hxg6 {[%emt 0:00:08]} 15. Rfe1 {[%emt 0:04:11]} Rab8 {[%emt 0:03:01]} 16. Nf3 {[%emt 0:02:34]} Qc7 {[%emt 0:00:52]} 17. a4 {[%emt 0:03:15]} a6 {[%emt 0:02:28]} 18. Qc2 {[%emt 0:00:13]} Nd7 {[%emt 0:07:05]} 19. Bd2 {[%emt 0:13:09]} e5 {[%emt 0:08:49]} 20. dxe5 {[%emt 0:00:06]} Ndxe5 {[%emt 0:00:56]} 21. Nxe5 {[%emt 0:01:08]} Nxe5 {[%emt 0:00:08]} 22. Bf1 {[%emt 0:01:19]} Nc4 {[%emt 0:05:32]} 23. Rad1 {[%emt 0:04:12]} Be7 {[%emt 0:11:23]} 24. g3 {[%emt 0:03:41]} Nxd2 {[%emt 0:18:38]} 25. Rxd2 {[%emt 0:00:48]} Bc5 {[%emt 0:00:08]} 26. Kh2 {[%emt 0:02:59]} Rfe8 {[%emt 0:02:01]} 27. Rxe8+ {[%emt 0:03:31]} Rxe8 {[%emt 0:00:06]} 28. Bg2 {[%emt 0:01:00]} Re1 {[%emt 0:14:30]} 29. Bxd5 {[%emt 0:01:30]} Kh7 {[%emt 0:01:49]} 30. Re2 {[%emt 0:02:07]} Rxe2 {[%emt 0:00:07]} 31. Qxe2 {[%emt 0:00:05]} Qd7 {[%emt 0:00:05]} 32. c4 {[%emt 0:02:17]} b6 {[%emt 0:01:39]} 33. Kg2 {[%emt 0:01:52]} a5 {[%emt 0:02:19]} 34. Qf3 {[%emt 0:00:44]} Kg8 {[%emt 0:00:05]} 35. b3 {[%emt 0:00:28]} Qe7 {[%emt 0:00:32]} 36. h4 {[%emt 0:01:03]} Bd4 {[%emt 0:00:38]} 37. Qg4 {[%emt 0:00:30]} Qf6 {[%emt 0:00:50]} 38. Qe2 {[%emt 0:02:44]} Qe5 {[%emt 0:01:35]} 39. Qxe5 {[%emt 0:01:28]} Bxe5 {[%emt 0:00:08]} 40. f4 {[%emt 0:00:05]} Bc3 {[%emt 0:00:05]} 41. Kf3 {[%emt 0:00:12]} Kf8 {[%emt 0:00:06]} 42. g4 {[%emt 0:00:43]} Be1 {[%emt 0:00:25]} 43. h5 {[%emt 0:00:05]} gxh5 {[%emt 0:00:03]} 44. gxh5 {[%emt 0:00:05]} Ke7 {[%emt 0:00:06]} 45. Ke4 {[%emt 0:01:23]} Bc3 {[%emt 0:02:06]} 46. Kf5 {[%emt 0:00:31]} Bd2 {[%emt 0:00:19]} 47. Bf3 {[%emt 0:00:50]} Bc3 {[%emt 0:00:27]} 48. Bd5 {[%emt 0:00:13]} Bd2 {[%emt 0:00:12]} 49. Bf3 {[%emt 0:00:07]} Bc3 {[%emt 0:00:06]} 50. Bd5 {[%emt 0:00:09]} 1/2-1/2

[Event "XIII Mediterranean Championship 2023"]
[Site "Castell-Platja d Aro"]
[Date "2023.11.08"]
[Round "6.13"]
[White "Vehi Bach, Victor Manuel"]
[Black "Lever, Erwan"]
[Result "1-0"]
[ECO "B44"]
[WhiteElo "2216"]
[BlackElo "2184"]
[Annotator "RC"]
[PlyCount "117"]
[EventDate "2023.10.26"]
[EventType "swiss"]
[EventCountry "ESP"]
[SourceTitle "playchess.com"]
[Source "ChessBase"]
[SourceQuality "1"]
[TimeControl "5400+30"]

1. e4 {[%emt 0:00:03]} c5 {[%emt 0:00:05]} 2. Nf3 {[%emt 0:00:07]} e6 {[%emt 0:00:05]} 3. d4 {[%emt 0:00:06]} cxd4 {[%emt 0:00:05]} 4. Nxd4 {[%emt 0:00:07]} Nc6 {[%emt 0:00:06]} 5. Bf4 {[%emt 0:03:59]} d6 {[%emt 0:00:10]} 6. Nxc6 {[%emt 0:00:07]} bxc6 {[%emt 0:00:04]} 7. c4 {[%emt 0:00:05]} e5 {[%emt 0:00:07]} 8. Be3 {[%emt 0:00:22]} Nf6 {[%emt 0:00:54]} 9. Nc3 {[%emt 0:00:21]} Ng4 {[%emt 0:01:16]} 10. Bc1 {[%emt 0:00:44]} Qb6 {[%emt 0:00:07]} 11. Qc2 {[%emt 0:02:24]} d5 {[%emt 0:04:54]} 12. cxd5 {[%emt 0:27:42]} Bc5 {[%emt 0:00:42]} 13. Nd1 {[%emt 0:13:37]} cxd5 {[%emt 0:02:36]} 14. exd5 {[%emt 0:00:52]} O-O {[%emt 0:02:02]} 15. h3 {[%emt 0:14:22]} Nf6 {[%emt 0:01:40]} 16. Nc3 {[%emt 0:02:23]} Bb7 {[%emt 0:02:29]} 17. Bd3 {[%emt 0:05:59]} e4 {[%emt 0:04:05]} 18. Bxe4 {[%emt 0:05:08]} Nxe4 {[%emt 0:00:49]} 19. Nxe4 {[%emt 0:00:06]} Bb4+ {[%emt 0:00:40]} 20. Nc3 {[%emt 0:02:35]} Rfe8+ {[%emt 0:01:59]} 21. Be3 {[%emt 0:00:14]} Rxe3+ {[%emt 0:16:10]} 22. fxe3 {[%emt 0:00:11]} Qxe3+ {[%emt 0:00:11]} 23. Qe2 {[%emt 0:00:10]} Qg3+ {[%emt 0:03:34]} 24. Kd1 {[%emt 0:05:10]} Bxd5 {[%emt 0:11:17]} 25. Nxd5 {[%emt 0:00:09]} Rd8 {[%emt 0:00:18]} 26. Qe4 {[%emt 0:05:46]} Qg5 {[%emt 0:01:15]} 27. Kc2 {[%emt 0:01:20]} Qd2+ {[%emt 0:09:17]} 28. Kb1 {[%emt 0:00:31]} Rxd5 {[%emt 0:00:07]} 29. a3 {[%emt 0:00:20]} Bd6 {[%emt 0:06:35]} 30. Rc1 {[%emt 0:01:33]} g6 {[%emt 0:00:58]} 31. Rc2 {[%emt 0:00:33]} Qa5 {[%emt 0:01:00]} 32. Ka2 {[%emt 0:01:24]} Be5 {[%emt 0:01:19]} 33. Rac1 {[%emt 0:02:10]} Rd4 {[%emt 0:00:34]} 34. Qc6 {[%emt 0:00:58]} Rb4 {[%emt 0:01:35]} 35. Rf1 {[%emt 0:02:21]} Rb8 {[%emt 0:03:42]} 36. Qc4 {[%emt 0:00:32]} Rf8 {[%emt 0:01:38]} 37. Rcf2 {[%emt 0:01:11]} Qb6 {[%emt 0:00:08]} 38. Qb3 {[%emt 0:00:07]} Qc7 {[%emt 0:00:27]} 39. Rc2 {[%emt 0:00:18]} Qe7 {[%emt 0:00:45]} 40. Rfc1 {[%emt 0:02:01]} Qd7 {[%emt 0:00:46]} 41. Re1 {[%emt 0:00:52]} Rb8 {[%emt 0:01:21]} 42. Qc4 {[%emt 0:00:21]} Rxb2+ {[%emt 0:03:10]} 43. Rxb2 {[%emt 0:00:08]} Bxb2 {[%emt 0:00:03]} 44. Qe2 {[%emt 0:00:35]} Bd4 {[%emt 0:02:06]} 45. Qe8+ {[%emt 0:00:05]} Qxe8 {[%emt 0:00:04]} 46. Rxe8+ {[%emt 0:00:07]} Kg7 {[%emt 0:00:02]} 47. Kb3 {[%emt 0:00:14]} h5 {[%emt 0:00:33]} 48. Kc4 {[%emt 0:00:15]} Bf2 {[%emt 0:00:07]} 49. Re2 {[%emt 0:01:15]} Bg1 {[%emt 0:00:09]} 50. Re1 {[%emt 0:00:31]} Bf2 {[%emt 0:00:02]} 51. Rf1 {[%emt 0:00:08]} Be3 {[%emt 0:00:06]} 52. a4 {[%emt 0:00:30]} f5 {[%emt 0:00:39]} 53. a5 {[%emt 0:01:32]} Kf6 {[%emt 0:00:14]} 54. a6 {[%emt 0:00:48]} f4 {[%emt 0:01:28]} 55. Kd3 {[%emt 0:00:34]} Kf5 {[%emt 0:00:13]} 56. Rb1 {[%emt 0:00:31]} Kg5 {[%emt 0:08:11]} 57. g3 {[%emt 0:01:06]} h4 {[%emt 0:02:35]} 58. Rb5+ {[%emt 0:00:14]} Kh6 {[%emt 0:00:11]} 59. gxf4 {[%emt 0:00:20]} 1-0

[Event "XIII Mediterranean Championship 2023"]
[Site "Castell-Platja d Aro"]
[Date "2023.11.08"]
[Round "6.14"]
[White "Menac Comas, Joan Ramon"]
[Black "Alsina Leal, Daniel"]
[Result "0-1"]
[ECO "A09"]
[WhiteElo "2044"]
[BlackElo "2531"]
[Annotator "RC"]
[PlyCount "38"]
[EventDate "2023.10.26"]
[EventType "swiss"]
[EventCountry "ESP"]
[SourceTitle "playchess.com"]
[Source "ChessBase"]
[SourceQuality "1"]
[TimeControl "5400+30"]

1. Nf3 {[%emt 0:00:03]} d5 {[%emt 0:00:09]} 2. e3 {[%emt 0:01:30]} c5 {[%emt 0:01:45]} 3. c4 {[%emt 0:04:19]} d4 {[%emt 0:00:43]} 4. exd4 {[%emt 0:03:06]} cxd4 {[%emt 0:00:07]} 5. b4 {[%emt 0:00:44]} Nf6 {[%emt 0:01:08]} 6. Bb2 {[%emt 0:02:08]} e5 {[%emt 0:00:42]} 7. Qb3 {[%emt 0:06:11]} Nc6 {[%emt 0:17:26]} 8. b5 {[%emt 0:04:05]} Na5 {[%emt 0:09:56]} 9. Qc2 {[%emt 0:01:07]} Bc5 {[%emt 0:04:18]} 10. d3 {[%emt 0:01:18]} O-O {[%emt 0:00:24]} 11. Nbd2 {[%emt 0:03:50]} Re8 {[%emt 0:02:12]} 12. O-O-O {[%emt 0:09:48]} a6 {[%emt 0:03:11]} 13. g3 {[%emt 0:06:08]} axb5 {[%emt 0:02:48]} 14. cxb5 {[%emt 0:01:55]} Qd5 {[%emt 0:04:17]} 15. Bg2 {[%emt 0:06:36]} Qxa2 {[%emt 0:06:07]} 16. Qxc5 {[%emt 0:02:48]} Bf5 {[%emt 0:04:02]} 17. Nxe5 {[%emt 0:02:22]} Rxe5 {[%emt 0:02:50]} 18. Qxe5 {[%emt 0:00:40]} Bxd3 {[%emt 0:03:42]} 19. Qc7 {[%emt 0:14:55]} Qb1+ {[%emt 0:00:49]} 0-1